[Event "*** Titled Tuesday Blitz"]
[Site "Chess.com"]
[Date "2021.04.06"]
[Round "10"]
[White "EfrenRamos1"]
[Black "ChessAurochs"]
[Result "0-1"]
[WhiteElo "2326"]
[BlackElo "2535"]
[TimeControl "180+1"]
[EndTime "11:57:13 PDT"]
[Termination "ChessAurochs won by resignation"]

1. d4 {[%clk 0:03:00.9]} 1... Nf6 {[%clk 0:02:58.6]} 2. Bg5 {[%clk 0:02:59.2]}
2... d5 {[%clk 0:02:55.9]} 3. Nd2 {[%clk 0:02:58.3]} 3... e6 {[%clk 0:02:55.5]}
4. Ngf3 {[%clk 0:02:57.3]} 4... c5 {[%clk 0:02:54.5]} 5. e3 {[%clk 0:02:55.6]}
5... Nc6 {[%clk 0:02:53.9]} 6. c3 {[%clk 0:02:52.3]} 6... Be7 {[%clk 0:02:53.3]}
7. Bd3 {[%clk 0:02:51.2]} 7... O-O {[%clk 0:02:53.2]} 8. O-O {[%clk 0:02:49.3]}
8... b6 {[%clk 0:02:51.5]} 9. Qe2 {[%clk 0:02:42.2]} 9... Bb7 {[%clk 0:02:50.9]}
10. Ba6 {[%clk 0:02:40.4]} 10... Qd7 {[%clk 0:02:49.4]} 11. Rfd1 {[%clk
0:02:34.4]} 11... Rfe8 {[%clk 0:02:47.1]} 12. Ne5 {[%clk 0:02:18.4]} 12... Bxa6
{[%clk 0:02:36.9]} 13. Qxa6 {[%clk 0:02:16]} 13... Qc7 {[%clk 0:02:25.4]} 14. f4
{[%clk 0:02:01.6]} 14... Nd7 {[%clk 0:02:18.3]} 15. Bxe7 {[%clk 0:01:59.8]}
15... Rxe7 {[%clk 0:02:19.2]} 16. Ndf3 {[%clk 0:01:47.2]} 16... f6 {[%clk
0:02:15.7]} 17. Nxd7 {[%clk 0:01:45.5]} 17... Rxd7 {[%clk 0:02:10.7]} 18. Qd3
{[%clk 0:01:38.7]} 18... Re8 {[%clk 0:02:09]} 19. Qb5 {[%clk 0:01:17.6]} 19...
Nd8 {[%clk 0:01:55.2]} 20. a4 {[%clk 0:01:11.4]} 20... Nb7 {[%clk 0:01:54.8]}
21. Qd3 {[%clk 0:00:56.5]} 21... Nd6 {[%clk 0:01:47.2]} 22. Nd2 {[%clk
0:00:56.3]} 22... Qc6 {[%clk 0:01:40.3]} 23. h3 {[%clk 0:00:53.9]} 23... e5
{[%clk 0:01:38.8]} 24. dxe5 {[%clk 0:00:52]} 24... fxe5 {[%clk 0:01:39.7]} 25.
fxe5 {[%clk 0:00:51.3]} 25... Rxe5 {[%clk 0:01:40.6]} 26. Nf3 {[%clk 0:00:51.6]}
26... Rf5 {[%clk 0:01:35.1]} 27. Rf1 {[%clk 0:00:41.1]} 27... Rdf7 {[%clk
0:01:27.9]} 28. Rad1 {[%clk 0:00:39.2]} 28... Qxa4 {[%clk 0:01:24.5]} 29. Nd2
{[%clk 0:00:29.6]} 29... Qc6 {[%clk 0:01:19.4]} 30. Rxf5 {[%clk 0:00:28.4]}
30... Rxf5 {[%clk 0:01:20.3]} 31. Rf1 {[%clk 0:00:25.3]} 31... Rxf1+ {[%clk
0:01:19.9]} 32. Nxf1 {[%clk 0:00:25.7]} 32... Ne4 {[%clk 0:01:19.2]} 33. c4
{[%clk 0:00:25.7]} 33... dxc4 {[%clk 0:01:17.2]} 34. Qxc4+ {[%clk 0:00:25.5]}
34... Kf8 {[%clk 0:01:15.1]} 35. Qc2 {[%clk 0:00:20.6]} 35... a5 {[%clk
0:01:11]} 36. Nh2 {[%clk 0:00:19.6]} 36... Nf6 {[%clk 0:01:08]} 37. Nf3 {[%clk
0:00:19.3]} 37... Qe4 {[%clk 0:01:07.5]} 38. Qd2 {[%clk 0:00:19.3]} 38... Ke7
{[%clk 0:01:04.7]} 39. Ng5 {[%clk 0:00:18.3]} 39... Qb1+ {[%clk 0:01:04.7]} 40.
Kh2 {[%clk 0:00:17.2]} 40... Qf5 {[%clk 0:01:05.6]} 41. Nf3 {[%clk 0:00:16.7]}
41... Qd5 {[%clk 0:01:05.2]} 42. Qc3 {[%clk 0:00:16.4]} 42... h6 {[%clk
0:01:01.5]} 43. Kg1 {[%clk 0:00:14.6]} 43... Qd1+ {[%clk 0:01:00.5]} 44. Kh2
{[%clk 0:00:14.5]} 44... Qd6+ {[%clk 0:01:01.4]} 45. Kg1 {[%clk 0:00:13.6]}
45... Qd5 {[%clk 0:00:58.1]} 46. Ne5 {[%clk 0:00:09.3]} 46... Ne4 {[%clk
0:00:55.3]} 47. Ng6+ {[%clk 0:00:06.2]} 47... Kf7 {[%clk 0:00:55.7]} 48. Qe5
{[%clk 0:00:05.9]} 48... Qxe5 {[%clk 0:00:49.3]} 49. Nxe5+ {[%clk 0:00:06.8]}
49... Ke6 {[%clk 0:00:49.9]} 50. Nc4 {[%clk 0:00:06.4]} 50... Nd6 {[%clk
0:00:43.7]} 51. Nxb6 {[%clk 0:00:06.1]} 51... Ke5 {[%clk 0:00:41.1]} 52. Na4
{[%clk 0:00:07]} 52... c4 {[%clk 0:00:40.5]} 53. Kf2 {[%clk 0:00:07.9]} 53...
Ke4 {[%clk 0:00:40.6]} 54. Ke2 {[%clk 0:00:08.1]} 54... g5 {[%clk 0:00:38.9]}
55. Nc5+ {[%clk 0:00:08.4]} 55... Kd5 {[%clk 0:00:39.4]} 56. Nb7 {[%clk
0:00:08.7]} 56... Nxb7 {[%clk 0:00:38.9]} 57. Kf3 {[%clk 0:00:08.1]} 57... Nc5
{[%clk 0:00:38.2]} 58. g4 {[%clk 0:00:09]} 58... Nd3 {[%clk 0:00:38.2]} 59. h4
{[%clk 0:00:09.9]} 59... Nxb2 {[%clk 0:00:38.1]} 60. hxg5 {[%clk 0:00:10.8]}
60... hxg5 {[%clk 0:00:38.9]} 61. Ke2 {[%clk 0:00:10.4]} 61... Nd3 {[%clk
0:00:38.3]} 62. Kd2 {[%clk 0:00:11.3]} 62... Ke4 {[%clk 0:00:38.6]} 63. Kc3
{[%clk 0:00:12.2]} 63... Kxe3 {[%clk 0:00:39]} 64. Kxc4 {[%clk 0:00:13.1]} 64...
Ne5+ {[%clk 0:00:39.5]} 65. Kb5 {[%clk 0:00:14]} 65... Nxg4 {[%clk 0:00:40.4]}
66. Kxa5 {[%clk 0:00:14.7]} 66... Nf2 {[%clk 0:00:41.3]} 67. Kb6 {[%clk
0:00:15.4]} 67... g4 {[%clk 0:00:42.2]} 68. Kc6 {[%clk 0:00:16.1]} 68... g3
{[%clk 0:00:43.1]} 69. Kd6 {[%clk 0:00:16.8]} 69... g2 {[%clk 0:00:43.6]} 70.
Ke6 {[%clk 0:00:17.7]} 70... g1=Q {[%clk 0:00:44.5]} 71. Kf5 {[%clk 0:00:18.6]}
71... Qg4+ {[%clk 0:00:44.7]} 72. Kf6 {[%clk 0:00:18.2]} 72... Qe4 {[%clk
0:00:45.6]} 73. Kg5 {[%clk 0:00:18.2]} 73... Nh3+ {[%clk 0:00:45]} 74. Kh5
{[%clk 0:00:18]} 74... Qg2 {[%clk 0:00:42.5]} 75. Kh4 {[%clk 0:00:17.2]} 75...
Kf4 {[%clk 0:00:41.3]} 0-1

[Event "*** Titled Tuesday Blitz"]
[Site "Chess.com"]
[Date "2021.04.06"]
[Round "10"]
[White "Jospem"]
[Black "Supernotar"]
[Result "1-0"]
[WhiteElo "2912"]
[BlackElo "2711"]
[TimeControl "180+1"]
[EndTime "11:57:14 PDT"]
[Termination "Jospem won on time"]

1. e4 {[%clk 0:03:00.9]} 1... c6 {[%clk 0:03:00.1]} 2. Nf3 {[%clk 0:03:00.8]}
2... d5 {[%clk 0:03:00.2]} 3. d3 {[%clk 0:03:01.5]} 3... g6 {[%clk 0:02:59.8]}
4. Nbd2 {[%clk 0:03:01.2]} 4... Bg7 {[%clk 0:02:59.1]} 5. g3 {[%clk 0:03:01.6]}
5... e5 {[%clk 0:02:58.4]} 6. Bg2 {[%clk 0:03:01.8]} 6... Ne7 {[%clk 0:02:58.1]}
7. O-O {[%clk 0:03:02.4]} 7... O-O {[%clk 0:02:57.4]} 8. Re1 {[%clk 0:03:02.4]}
8... Nd7 {[%clk 0:02:56.9]} 9. b4 {[%clk 0:03:02.3]} 9... Qc7 {[%clk 0:02:53]}
10. a4 {[%clk 0:02:57.2]} 10... b6 {[%clk 0:02:49.5]} 11. Bb2 {[%clk 0:02:53.6]}
11... Bb7 {[%clk 0:02:45.5]} 12. Qe2 {[%clk 0:02:53.6]} 12... Rfe8 {[%clk
0:02:42.2]} 13. a5 {[%clk 0:02:53.5]} 13... Rad8 {[%clk 0:02:39.3]} 14. axb6
{[%clk 0:02:53]} 14... axb6 {[%clk 0:02:40.2]} 15. Ra7 {[%clk 0:02:50.4]} 15...
Qb8 {[%clk 0:02:39.3]} 16. Rea1 {[%clk 0:02:50.6]} 16... b5 {[%clk 0:02:28.1]}
17. Nb3 {[%clk 0:02:46.2]} 17... Nc8 {[%clk 0:02:24.2]} 18. R7a2 {[%clk
0:02:41.5]} 18... dxe4 {[%clk 0:02:20.7]} 19. dxe4 {[%clk 0:02:40.4]} 19... Ncb6
{[%clk 0:02:17.8]} 20. Ne1 {[%clk 0:02:27.2]} 20... Nc4 {[%clk 0:02:17.3]} 21.
Nd3 {[%clk 0:02:26.7]} 21... Bf8 {[%clk 0:02:11.9]} 22. Bc1 {[%clk 0:02:26.7]}
22... Ndb6 {[%clk 0:02:05.9]} 23. Bg5 {[%clk 0:02:25.7]} 23... Be7 {[%clk
0:02:03.3]} 24. Bxe7 {[%clk 0:02:25.8]} 24... Rxe7 {[%clk 0:02:04.2]} 25. h4
{[%clk 0:02:15.7]} 25... h5 {[%clk 0:02:01.1]} 26. Nbc5 {[%clk 0:02:14.6]} 26...
Bc8 {[%clk 0:02:00]} 27. Kh2 {[%clk 0:02:12.8]} 27... Kg7 {[%clk 0:01:55.7]} 28.
Qe1 {[%clk 0:02:10.6]} 28... Bg4 {[%clk 0:01:51.7]} 29. Qc3 {[%clk 0:02:03.6]}
29... Qd6 {[%clk 0:01:38]} 30. Ra7 {[%clk 0:01:56.9]} 30... Rde8 {[%clk
0:01:35.1]} 31. f4 {[%clk 0:01:36.2]} 31... Kg8 {[%clk 0:01:23]} 32. fxe5 {[%clk
0:01:25.3]} 32... Nxe5 {[%clk 0:01:17.2]} 33. Nxe5 {[%clk 0:01:25.2]} 33... Rxe5
{[%clk 0:01:10.8]} 34. Rf1 {[%clk 0:01:24.9]} 34... R8e7 {[%clk 0:01:04.2]} 35.
Ra6 {[%clk 0:01:16.3]} 35... Nc4 {[%clk 0:01:01.9]} 36. Ra8+ {[%clk 0:01:14.3]}
36... Re8 {[%clk 0:00:57.4]} 37. Ra7 {[%clk 0:01:11.8]} 37... R8e7 {[%clk
0:00:57.2]} 38. Ra8+ {[%clk 0:01:09.5]} 38... Re8 {[%clk 0:00:57]} 39. Ra6
{[%clk 0:01:10.1]} 39... R8e7 {[%clk 0:00:38.3]} 40. Qd3 {[%clk 0:01:09.6]}
40... Qc7 {[%clk 0:00:31.4]} 41. Qd4 {[%clk 0:01:06.8]} 41... Kh7 {[%clk
0:00:24.4]} 42. Rf6 {[%clk 0:00:59.7]} 42... Be6 {[%clk 0:00:18.1]} 43. Ra8
{[%clk 0:00:57.5]} 43... Bc8 {[%clk 0:00:16.2]} 44. Rf4 {[%clk 0:00:43.6]} 44...
Nb6 {[%clk 0:00:15.7]} 45. Ra1 {[%clk 0:00:39.7]} 45... Nc4 {[%clk 0:00:15]} 46.
Raf1 {[%clk 0:00:40.2]} 46... Kg8 {[%clk 0:00:13.2]} 47. Rf6 {[%clk 0:00:34.4]}
47... Be6 {[%clk 0:00:12]} 48. Na6 {[%clk 0:00:33.2]} 48... Qc8 {[%clk
0:00:10.2]} 49. Nc5 {[%clk 0:00:30.1]} 49... Qc7 {[%clk 0:00:10.6]} 50. Bh3
{[%clk 0:00:27.6]} 50... Bxh3 {[%clk 0:00:09.3]} 51. Kxh3 {[%clk 0:00:28.5]}
51... Qc8+ {[%clk 0:00:09.7]} 52. Kh2 {[%clk 0:00:28]} 52... Qg4 {[%clk
0:00:09.8]} 53. R1f2 {[%clk 0:00:21.9]} 53... g5 {[%clk 0:00:07.1]} 54. Rg2
{[%clk 0:00:18.3]} 54... Kg7 {[%clk 0:00:04.2]} 55. Rf5 {[%clk 0:00:15.5]} 55...
f6 {[%clk 0:00:04.6]} 56. Rff2 {[%clk 0:00:12.5]} 56... Kh7 {[%clk 0:00:04]} 57.
Nd3 {[%clk 0:00:12.4]} 57... Rxe4 {[%clk 0:00:04.2]} 58. Qxf6 {[%clk 0:00:12.7]}
58... gxh4 {[%clk 0:00:03.5]} 59. Nf4 {[%clk 0:00:12.2]} 59... hxg3+ {[%clk
0:00:02.4]} 60. Rxg3 {[%clk 0:00:13.1]} 1-0

[Event "*** Titled Tuesday Blitz"]
[Site "Chess.com"]
[Date "2021.04.06"]
[Round "10"]
[White "stepakyedael"]
[Black "Klavdia_Nik"]
[Result "0-1"]
[WhiteElo "2265"]
[BlackElo "2065"]
[TimeControl "180+1"]
[EndTime "11:57:14 PDT"]
[Termination "Klavdia_Nik won on time"]

1. d4 {[%clk 0:02:33.7]} 1... Nf6 {[%clk 0:02:56.9]} 2. c4 {[%clk 0:02:32.6]}
2... c5 {[%clk 0:02:56.6]} 3. d5 {[%clk 0:02:32.1]} 3... b5 {[%clk 0:02:49.8]}
4. cxb5 {[%clk 0:02:31.6]} 4... a6 {[%clk 0:02:48]} 5. b6 {[%clk 0:02:32.1]}
5... d6 {[%clk 0:02:47.4]} 6. Nc3 {[%clk 0:02:32.5]} 6... Nbd7 {[%clk 0:02:48]}
7. e4 {[%clk 0:02:32]} 7... g6 {[%clk 0:02:48.1]} 8. a4 {[%clk 0:02:31.8]} 8...
Qxb6 {[%clk 0:02:47.4]} 9. a5 {[%clk 0:02:31.8]} 9... Qb7 {[%clk 0:02:46.7]} 10.
Nf3 {[%clk 0:02:31.5]} 10... Bg7 {[%clk 0:02:46.8]} 11. Nd2 {[%clk 0:02:31.3]}
11... Rb8 {[%clk 0:02:41.6]} 12. Nc4 {[%clk 0:02:30.6]} 12... O-O {[%clk
0:02:41.6]} 13. Be2 {[%clk 0:02:27.2]} 13... h6 {[%clk 0:02:39.5]} 14. O-O
{[%clk 0:02:26.8]} 14... Ne8 {[%clk 0:02:39.5]} 15. Na4 {[%clk 0:02:22.6]} 15...
Nc7 {[%clk 0:02:35.9]} 16. Nab6 {[%clk 0:02:19.5]} 16... Nb5 {[%clk 0:02:33.1]}
17. Rb1 {[%clk 0:02:15.1]} 17... Nd4 {[%clk 0:02:21.8]} 18. Bd3 {[%clk 0:02:15]}
18... Kh7 {[%clk 0:02:17.8]} 19. b4 {[%clk 0:02:10.5]} 19... Ne5 {[%clk
0:02:09.2]} 20. Nxe5 {[%clk 0:02:07.9]} 20... Bxe5 {[%clk 0:02:08.9]} 21. bxc5
{[%clk 0:02:06.3]} 21... dxc5 {[%clk 0:02:08.9]} 22. f4 {[%clk 0:01:44.7]} 22...
Bg7 {[%clk 0:01:51.9]} 23. e5 {[%clk 0:01:33.6]} 23... Bf5 {[%clk 0:01:32.3]}
24. Be3 {[%clk 0:01:28.6]} 24... Bxd3 {[%clk 0:01:26.3]} 25. Qxd3 {[%clk
0:01:28.3]} 25... Nf5 {[%clk 0:01:08.1]} 26. Bxc5 {[%clk 0:01:21.6]} 26... h5
{[%clk 0:01:07.3]} 27. Bf2 {[%clk 0:01:10]} 27... Rfd8 {[%clk 0:01:03.5]} 28.
Rbc1 {[%clk 0:01:07.7]} 28... f6 {[%clk 0:00:35.5]} 29. e6 {[%clk 0:00:53.6]}
29... Bh6 {[%clk 0:00:22.9]} 30. g3 {[%clk 0:00:50.8]} 30... Rd6 {[%clk
0:00:20.6]} 31. Rc2 {[%clk 0:00:41]} 31... Rbd8 {[%clk 0:00:20.2]} 32. Rfc1
{[%clk 0:00:38.2]} 32... Rxe6 {[%clk 0:00:19.2]} 33. Qc4 {[%clk 0:00:33]} 33...
Red6 {[%clk 0:00:17.9]} 34. Qc7 {[%clk 0:00:30.3]} 34... Qxc7 {[%clk 0:00:17.1]}
35. Rxc7 {[%clk 0:00:30.2]} 35... Kg8 {[%clk 0:00:15.5]} 36. Ra7 {[%clk
0:00:28.6]} 36... Kf7 {[%clk 0:00:13.6]} 37. Rxa6 {[%clk 0:00:28.4]} 37... h4
{[%clk 0:00:13.9]} 38. Kg2 {[%clk 0:00:25.8]} 38... hxg3 {[%clk 0:00:13.2]} 39.
hxg3 {[%clk 0:00:24.9]} 39... g5 {[%clk 0:00:14.1]} 40. fxg5 {[%clk 0:00:22.2]}
40... Bxg5 {[%clk 0:00:13.9]} 41. Rc7 {[%clk 0:00:19.7]} 41... Ne3+ {[%clk
0:00:11.9]} 42. Kf3 {[%clk 0:00:18.2]} 42... Nxd5 {[%clk 0:00:11.4]} 43. Raa7
{[%clk 0:00:17.4]} 43... Re6 {[%clk 0:00:09.5]} 44. Nc8 {[%clk 0:00:12.7]} 44...
Nxc7 {[%clk 0:00:08.5]} 45. Rxc7 {[%clk 0:00:11.4]} 45... Rd3+ {[%clk 0:00:08]}
46. Kg2 {[%clk 0:00:10.2]} 46... Rd2 {[%clk 0:00:07.9]} 47. a6 {[%clk 0:00:09]}
47... Be3 {[%clk 0:00:07.2]} 48. a7 {[%clk 0:00:08.4]} 48... Rxf2+ {[%clk
0:00:08.1]} 49. Kh3 {[%clk 0:00:08.1]} 49... Ra2 {[%clk 0:00:06.9]} 50. Rb7
{[%clk 0:00:05.6]} 50... f5 {[%clk 0:00:05.9]} 51. Nd6+ {[%clk 0:00:05]} 51...
Kf6 {[%clk 0:00:05.2]} 52. Nc4 {[%clk 0:00:03.5]} 52... Bd4 {[%clk 0:00:04.8]}
0-1

[Event "*** Titled Tuesday Blitz"]
[Site "Chess.com"]
[Date "2021.04.06"]
[Round "10"]
[White "catzapto"]
[Black "madamDD"]
[Result "1/2-1/2"]
[WhiteElo "2106"]
[BlackElo "2378"]
[TimeControl "180+1"]
[EndTime "11:57:16 PDT"]
[Termination "Game drawn by repetition"]

1. e4 {[%clk 0:03:00.9]} 1... Nf6 {[%clk 0:02:58.4]} 2. Nc3 {[%clk 0:02:51.2]}
2... d6 {[%clk 0:02:55.1]} 3. f4 {[%clk 0:02:37.2]} 3... d5 {[%clk 0:02:45.7]}
4. e5 {[%clk 0:02:30.5]} 4... d4 {[%clk 0:02:44.9]} 5. exf6 {[%clk 0:02:27.4]}
5... dxc3 {[%clk 0:02:43.8]} 6. fxe7 {[%clk 0:02:20.2]} 6... Qxe7+ {[%clk
0:02:33.1]} 7. Qe2 {[%clk 0:02:20]} 7... cxd2+ {[%clk 0:02:27.3]} 8. Bxd2 {[%clk
0:02:18.2]} 8... Qxe2+ {[%clk 0:02:26]} 9. Bxe2 {[%clk 0:02:14.4]} 9... Bc5
{[%clk 0:02:20.7]} 10. O-O-O {[%clk 0:02:07.7]} 10... Nc6 {[%clk 0:02:19.5]} 11.
Nf3 {[%clk 0:02:06.4]} 11... Bf5 {[%clk 0:02:07.9]} 12. Bb5 {[%clk 0:02:04.2]}
12... O-O {[%clk 0:01:59.5]} 13. h3 {[%clk 0:01:52.3]} 13... Nd4 {[%clk
0:01:48.1]} 14. Nxd4 {[%clk 0:01:50]} 14... Bxd4 {[%clk 0:01:49]} 15. Bb4 {[%clk
0:01:26.1]} 15... Rfd8 {[%clk 0:01:36.2]} 16. Rhe1 {[%clk 0:01:19.8]} 16... c5
{[%clk 0:01:30.8]} 17. Bc3 {[%clk 0:00:58.5]} 17... Bxc3 {[%clk 0:01:24.2]} 18.
bxc3 {[%clk 0:00:58.6]} 18... a6 {[%clk 0:01:19.3]} 19. Bd3 {[%clk 0:00:54.2]}
19... Be6 {[%clk 0:01:16]} 20. Kb2 {[%clk 0:00:48.8]} 20... Bd5 {[%clk
0:01:06.9]} 21. g4 {[%clk 0:00:44.6]} 21... Kf8 {[%clk 0:00:48.1]} 22. c4 {[%clk
0:00:37.3]} 22... Bc6 {[%clk 0:00:45.4]} 23. Bf1 {[%clk 0:00:35.7]} 23... h6
{[%clk 0:00:31.9]} 24. Kc3 {[%clk 0:00:35.3]} 24... b5 {[%clk 0:00:29.6]} 25.
cxb5 {[%clk 0:00:35.1]} 25... axb5 {[%clk 0:00:30.3]} 26. Rxd8+ {[%clk
0:00:27.4]} 26... Rxd8 {[%clk 0:00:31.2]} 27. Re5 {[%clk 0:00:26.6]} 27... Bd5
{[%clk 0:00:27.9]} 28. Bxb5 {[%clk 0:00:22.2]} 28... f6 {[%clk 0:00:27.9]} 29.
Re3 {[%clk 0:00:18.2]} 29... Bxa2 {[%clk 0:00:27.8]} 30. Bc4 {[%clk 0:00:18]}
30... Bxc4 {[%clk 0:00:26.5]} 31. Kxc4 {[%clk 0:00:18.9]} 31... Rd4+ {[%clk
0:00:26.6]} 32. Kxc5 {[%clk 0:00:18.1]} 32... Rxf4 {[%clk 0:00:27.5]} 33. c4
{[%clk 0:00:17.5]} 33... f5 {[%clk 0:00:26.1]} 34. gxf5 {[%clk 0:00:14.4]} 34...
Rxf5+ {[%clk 0:00:27]} 35. Kd6 {[%clk 0:00:14.2]} 35... Rf6+ {[%clk 0:00:20.7]}
36. Re6 {[%clk 0:00:14]} 36... Rf3 {[%clk 0:00:17.8]} 37. c5 {[%clk 0:00:12]}
37... Rd3+ {[%clk 0:00:17.5]} 38. Ke5 {[%clk 0:00:11.1]} 38... Rxh3 {[%clk
0:00:16.5]} 39. c6 {[%clk 0:00:10]} 39... Rc3 {[%clk 0:00:14.2]} 40. Kd6 {[%clk
0:00:09.7]} 40... Kf7 {[%clk 0:00:13]} 41. Re5 {[%clk 0:00:09.8]} 41... Kf6
{[%clk 0:00:12.6]} 42. Rc5 {[%clk 0:00:10.1]} 42... Rd3+ {[%clk 0:00:09.7]} 43.
Kc7 {[%clk 0:00:10.7]} 43... Ke7 {[%clk 0:00:09.6]} 44. Kc8 {[%clk 0:00:10.1]}
44... Kd6 {[%clk 0:00:08.9]} 45. Rc1 {[%clk 0:00:08.6]} 45... Rf3 {[%clk
0:00:07.7]} 46. c7 {[%clk 0:00:08.2]} 46... Rf8+ {[%clk 0:00:07.6]} 47. Kb7
{[%clk 0:00:08.4]} 47... Rf7 {[%clk 0:00:07.8]} 48. Kb8 {[%clk 0:00:08.6]} 48...
Rxc7 {[%clk 0:00:06.3]} 49. Rxc7 {[%clk 0:00:08.4]} 49... g5 {[%clk 0:00:06.5]}
50. Rh7 {[%clk 0:00:08.4]} 50... Ke5 {[%clk 0:00:06.7]} 51. Rxh6 {[%clk
0:00:08.8]} 51... Kf4 {[%clk 0:00:07.1]} 52. Kc7 {[%clk 0:00:08.8]} 52... g4
{[%clk 0:00:07.6]} 53. Kd6 {[%clk 0:00:09]} 53... g3 {[%clk 0:00:08.1]} 54. Kd5
{[%clk 0:00:08.4]} 54... g2 {[%clk 0:00:08.3]} 55. Rg6 {[%clk 0:00:08.6]} 55...
Kf3 {[%clk 0:00:08.6]} 56. Kd4 {[%clk 0:00:09]} 56... Kf2 {[%clk 0:00:09]} 57.
Rf6+ {[%clk 0:00:09]} 57... Ke1 {[%clk 0:00:08.8]} 58. Rg6 {[%clk 0:00:07.3]}
58... Kf2 {[%clk 0:00:08.2]} 59. Rf6+ {[%clk 0:00:07.8]} 59... Ke1 {[%clk
0:00:08.2]} 60. Rg6 {[%clk 0:00:05.3]} 60... Kf2 {[%clk 0:00:08.5]} 1/2-1/2

[Event "*** Titled Tuesday Blitz"]
[Site "Chess.com"]
[Date "2021.04.06"]
[Round "10"]
[White "Deepweb2020"]
[Black "kubal123"]
[Result "1-0"]
[WhiteElo "2507"]
[BlackElo "2231"]
[TimeControl "180+1"]
[EndTime "11:57:20 PDT"]
[Termination "Deepweb2020 won by resignation"]

1. d4 {[%clk 0:02:56.5]} 1... d5 {[%clk 0:02:58.8]} 2. c4 {[%clk 0:02:56.2]}
2... Nc6 {[%clk 0:02:59.3]} 3. Nf3 {[%clk 0:02:55.5]} 3... Bg4 {[%clk
0:02:58.3]} 4. e3 {[%clk 0:02:52.3]} 4... e5 {[%clk 0:02:56.9]} 5. Qb3 {[%clk
0:02:50.2]} 5... Bxf3 {[%clk 0:02:41.5]} 6. Qxb7 {[%clk 0:02:47.2]} 6... Na5
{[%clk 0:02:39.9]} 7. Qa6 {[%clk 0:02:47.3]} 7... Bg4 {[%clk 0:01:45.5]} 8. Qxa5
{[%clk 0:02:46]} 8... exd4 {[%clk 0:01:44.9]} 9. Qxd5 {[%clk 0:02:43.1]} 9...
Qxd5 {[%clk 0:01:44]} 10. cxd5 {[%clk 0:02:43.3]} 10... Bb4+ {[%clk 0:01:44.5]}
11. Bd2 {[%clk 0:02:40]} 11... Bxd2+ {[%clk 0:01:44.4]} 12. Nxd2 {[%clk
0:02:40.9]} 12... dxe3 {[%clk 0:01:44.8]} 13. fxe3 {[%clk 0:02:41.8]} 13... Nf6
{[%clk 0:01:41.1]} 14. h3 {[%clk 0:02:40.1]} 14... Bf5 {[%clk 0:01:38.2]} 15.
Bb5+ {[%clk 0:02:40.6]} 15... Bd7 {[%clk 0:01:22.9]} 16. Bxd7+ {[%clk
0:02:39.4]} 16... Kxd7 {[%clk 0:01:23.8]} 17. O-O-O {[%clk 0:02:37.7]} 17...
Rhe8 {[%clk 0:01:22.3]} 18. Rhe1 {[%clk 0:02:37.3]} 18... Re5 {[%clk 0:01:13.3]}
19. Nf3 {[%clk 0:02:36.6]} 19... Re7 {[%clk 0:00:34.3]} 20. Nd4 {[%clk
0:02:20.3]} 20... g6 {[%clk 0:00:23.6]} 21. Nc6 {[%clk 0:02:14.1]} 21... Re4
{[%clk 0:00:21.7]} 22. Nd4 {[%clk 0:02:10.8]} 22... Ne8 {[%clk 0:00:16.6]} 23.
Nb5 {[%clk 0:02:05.8]} 23... Nd6 {[%clk 0:00:16.2]} 24. Nc3 {[%clk 0:02:06.1]}
24... Re5 {[%clk 0:00:15.6]} 25. b3 {[%clk 0:02:02.3]} 25... Rae8 {[%clk
0:00:15.5]} 26. Kd2 {[%clk 0:02:02.8]} 26... f5 {[%clk 0:00:15.8]} 27. Kd3
{[%clk 0:02:02.2]} 27... h5 {[%clk 0:00:14.4]} 28. Rd2 {[%clk 0:02:01.1]} 28...
g5 {[%clk 0:00:14.7]} 29. Rf2 {[%clk 0:02:01.3]} 29... h4 {[%clk 0:00:14.7]} 30.
a3 {[%clk 0:01:59]} 30... a5 {[%clk 0:00:13.4]} 31. a4 {[%clk 0:01:55.1]} 31...
Rb8 {[%clk 0:00:12.9]} 32. Kc2 {[%clk 0:01:53.7]} 32... Rb4 {[%clk 0:00:11.6]}
33. Ree2 {[%clk 0:01:44.9]} 33... Rb8 {[%clk 0:00:06.6]} 34. Rf3 {[%clk
0:01:41.9]} 34... Rbe8 {[%clk 0:00:06.9]} 35. Kd3 {[%clk 0:01:40.2]} 35... Ne4
{[%clk 0:00:07.4]} 36. Kd4 {[%clk 0:01:35.3]} 36... Nxc3 {[%clk 0:00:06.6]} 37.
Kxc3 {[%clk 0:01:36.2]} 37... Rxd5 {[%clk 0:00:06.9]} 38. Ref2 {[%clk
0:01:34.4]} 38... Rde5 {[%clk 0:00:07.1]} 39. Rxf5 {[%clk 0:01:34.2]} 39... Rxf5
{[%clk 0:00:07.7]} 40. Rxf5 {[%clk 0:01:34.2]} 40... Rxe3+ {[%clk 0:00:08.3]}
41. Kc4 {[%clk 0:01:32.9]} 41... Rg3 {[%clk 0:00:08.8]} 42. Rxa5 {[%clk
0:01:31.2]} 42... Rxg2 {[%clk 0:00:09.3]} 43. Rf5 {[%clk 0:01:31.5]} 43... Ke6
{[%clk 0:00:08.3]} 44. Rc5 {[%clk 0:01:31.2]} 44... g4 {[%clk 0:00:08]} 45. Rh5
{[%clk 0:01:27.7]} 45... gxh3 {[%clk 0:00:06]} 46. Rxh4 {[%clk 0:01:27.9]} 46...
h2 {[%clk 0:00:05.3]} 47. Kc5 {[%clk 0:01:19.8]} 47... Rc2+ {[%clk 0:00:04.4]}
48. Kb5 {[%clk 0:01:16.7]} 48... Rb2 {[%clk 0:00:04.3]} 49. b4 {[%clk
0:01:16.6]} 49... Kd6 {[%clk 0:00:03.5]} 50. Rh6+ {[%clk 0:01:15.9]} 50... Kd7
{[%clk 0:00:03.5]} 51. a5 {[%clk 0:01:15.8]} 51... c6+ {[%clk 0:00:03.8]} 52.
Kc5 {[%clk 0:01:14.2]} 52... Rc2+ {[%clk 0:00:03.3]} 53. Kb6 {[%clk 0:01:14.3]}
53... Ra2 {[%clk 0:00:04.2]} 54. a6 {[%clk 0:01:13.8]} 54... Rb2 {[%clk
0:00:03.8]} 55. Kc5 {[%clk 0:00:57.8]} 55... Rc2+ {[%clk 0:00:03.4]} 56. Kb6
{[%clk 0:00:57]} 56... Rb2 {[%clk 0:00:03.9]} 57. a7 {[%clk 0:00:46.4]} 57...
Rxb4+ {[%clk 0:00:03.8]} 58. Ka5 {[%clk 0:00:44.3]} 58... Rb5+ {[%clk
0:00:04.2]} 59. Ka6 {[%clk 0:00:43.9]} 59... Rb1 {[%clk 0:00:04.7]} 60. a8=Q
{[%clk 0:00:34.5]} 60... Ra1+ {[%clk 0:00:04]} 61. Kb7 {[%clk 0:00:35.4]} 61...
Rb1+ {[%clk 0:00:03.5]} 62. Ka7 {[%clk 0:00:35.4]} 62... Ra1+ {[%clk 0:00:03.8]}
63. Kb8 {[%clk 0:00:35.8]} 63... Rb1+ {[%clk 0:00:03.6]} 64. Qb7+ {[%clk
0:00:35.4]} 64... Rxb7+ {[%clk 0:00:03.9]} 65. Kxb7 {[%clk 0:00:36.3]} 65... c5
{[%clk 0:00:04.3]} 66. Kb6 {[%clk 0:00:36.1]} 66... c4 {[%clk 0:00:04.1]} 67.
Kb5 {[%clk 0:00:35.7]} 67... c3 {[%clk 0:00:04.1]} 68. Rxh2 {[%clk 0:00:34.9]}
1-0